[Event "Titled Tuesday Blitz April 11 Early 2023"]
[White "Derichs, Roger"]
[Black "Tregubov, Pavel V."]
[WhiteFideId "4630076"]
[BlackFideId "4115341"]
[WhiteElo "2359"]
[BlackElo "2425"]
[Result "1/2-1/2"]
[Round "01"]
[TimeControl "180+2"]
[Date "2023.04.11"]
[WhiteClock "0:01:34"]
[BlackClock "0:01:37"]

1. d4 {[%clk 0:02:58]}  Nf6 {[%clk 0:02:55]} 2. c4 {[%clk 0:02:58]}  e6 {[%clk 0:02:55]} 3. g3 {[%clk 0:02:58]}  Bb4+ {[%clk 0:02:55]} 4. Nd2 {[%clk 0:02:56]}  O-O {[%clk 0:02:47]} 5. Bg2 {[%clk 0:02:51]}  d5 {[%clk 0:02:46]} 6. Nf3 {[%clk 0:02:49]}  dxc4 {[%clk 0:02:40]} 7. O-O {[%clk 0:02:45]}  c5 {[%clk 0:02:29]} 8. Nxc4 {[%clk 0:02:41]}  cxd4 {[%clk 0:02:23]} 9. Qxd4 {[%clk 0:02:37]}  Nc6 {[%clk 0:02:20]} 10. Qxd8 {[%clk 0:02:37]}  Rxd8 {[%clk 0:02:21]} 11. a3 {[%clk 0:02:34]}  Be7 {[%clk 0:02:20]} 12. Nce5 {[%clk 0:02:25]}  Nxe5 {[%clk 0:02:16]} 13. Nxe5 {[%clk 0:02:25]}  Nd7 {[%clk 0:02:15]} 14. Nxd7 {[%clk 0:02:22]}  Bxd7 {[%clk 0:02:15]} 15. Bxb7 {[%clk 0:02:15]}  Rab8 {[%clk 0:02:15]} 16. Be4 {[%clk 0:02:15]}  Bf6 {[%clk 0:02:14]} 17. Rb1 {[%clk 0:02:05]}  Bb5 {[%clk 0:02:14]} 18. Bf3 {[%clk 0:02:02]}  Bc4 {[%clk 0:02:11]} 19. Be3 {[%clk 0:01:56]}  a5 {[%clk 0:01:53]} 20. b4 {[%clk 0:01:50]}  Ba2 {[%clk 0:01:44]} 21. Rbd1 {[%clk 0:01:44]}  axb4 {[%clk 0:01:44]} 22. Rxd8+ {[%clk 0:01:39]}  Bxd8 {[%clk 0:01:42]} 23. axb4 {[%clk 0:01:40]}  Rxb4 {[%clk 0:01:37]} 24. Ra1 {[%clk 0:01:35]}  Rb1+ {[%clk 0:01:37]} 25. Rxb1 {[%clk 0:01:34]} 1/2-1/2


[Site "https://www.chess.com"]

[Event "Titled Tuesday Blitz April 11 Early 2023"]
[White "Iliaguev, Nisim"]
[Black "Mrudul Dehankar"]
[WhiteFideId "2817276"]
[BlackFideId "25096990"]
[WhiteElo "2241"]
[BlackElo "2139"]
[Result "1-0"]
[Round "01"]
[TimeControl "180+2"]
[Date "2023.04.11"]
[WhiteClock "0:00:47"]
[BlackClock "0:00:02"]

1. d4 {[%clk 0:03:00]}  Nf6 {[%clk 0:02:13]} 2. Nf3 {[%clk 0:02:59]}  e6 {[%clk 0:02:13]} 3. g3 {[%clk 0:03:00]}  b6 {[%clk 0:02:13]} 4. Bg2 {[%clk 0:03:00]}  Bb7 {[%clk 0:02:13]} 5. O-O {[%clk 0:03:01]}  Be7 {[%clk 0:02:13]} 6. c4 {[%clk 0:03:02]}  O-O {[%clk 0:02:13]} 7. d5 {[%clk 0:03:03]}  exd5 {[%clk 0:02:10]} 8. Nh4 {[%clk 0:03:03]}  c6 {[%clk 0:02:01]} 9. cxd5 {[%clk 0:03:03]}  Nxd5 {[%clk 0:02:00]} 10. Nf5 {[%clk 0:03:04]}  Bf6 {[%clk 0:01:58]} 11. e4 {[%clk 0:03:03]}  Nc7 {[%clk 0:01:55]} 12. Nd6 {[%clk 0:03:02]}  Ba6 {[%clk 0:01:54]} 13. Re1 {[%clk 0:03:02]}  Nb5 {[%clk 0:01:49]} 14. Nxb5 {[%clk 0:02:47]}  Bxb5 {[%clk 0:01:49]} 15. e5 {[%clk 0:02:47]}  Be7 {[%clk 0:01:44]} 16. Nc3 {[%clk 0:02:47]}  Bc4 {[%clk 0:01:37]} 17. Ne4 {[%clk 0:02:38]}  Bd5 {[%clk 0:01:33]} 18. h4 {[%clk 0:02:33]}  Na6 {[%clk 0:01:33]} 19. h5 {[%clk 0:02:28]}  Nc5 {[%clk 0:01:31]} 20. h6 {[%clk 0:02:29]}  g6 {[%clk 0:01:16]} 21. Nc3 {[%clk 0:02:23]}  Bxg2 {[%clk 0:01:15]} 22. Kxg2 {[%clk 0:02:23]}  d5 {[%clk 0:01:15]} 23. exd6 {[%clk 0:02:22]}  Qxd6 {[%clk 0:01:12]} 24. Bf4 {[%clk 0:02:18]}  Qxd1 {[%clk 0:00:51]} 25. Raxd1 {[%clk 0:02:19]}  Ne6 {[%clk 0:00:46]} 26. Be5 {[%clk 0:02:14]}  Rfd8 {[%clk 0:00:44]} 27. Ne4 {[%clk 0:02:13]}  Rxd1 {[%clk 0:00:28]} 28. Rxd1 {[%clk 0:02:14]}  Rd8 {[%clk 0:00:28]} 29. Rc1 {[%clk 0:02:14]}  c5 {[%clk 0:00:24]} 30. Nf6+ {[%clk 0:02:15]}  Bxf6 {[%clk 0:00:20]} 31. Bxf6 {[%clk 0:02:16]}  Rd5 {[%clk 0:00:18]} 32. g4 {[%clk 0:02:13]}  Kf8 {[%clk 0:00:18]} 33. b4 {[%clk 0:02:10]}  Ke8 {[%clk 0:00:18]} 34. bxc5 {[%clk 0:02:09]}  Nxc5 {[%clk 0:00:17]} 35. Re1+ {[%clk 0:02:03]}  Ne6 {[%clk 0:00:16]} 36. Kg3 {[%clk 0:02:01]}  Kd7 {[%clk 0:00:16]} 37. f3 {[%clk 0:02:01]}  Rd3 {[%clk 0:00:16]} 38. Rc1 {[%clk 0:02:01]}  Rd2 {[%clk 0:00:16]} 39. a4 {[%clk 0:02:00]}  Rd3 {[%clk 0:00:16]} 40. Rc4 {[%clk 0:01:47]}  Nc5 {[%clk 0:00:15]} 41. a5 {[%clk 0:01:44]}  Ke6 {[%clk 0:00:16]} 42. g5 {[%clk 0:01:37]}  Kd5 {[%clk 0:00:15]} 43. Rf4 {[%clk 0:01:30]}  Ne6 {[%clk 0:00:15]} 44. Rb4 {[%clk 0:01:28]}  Kc5 {[%clk 0:00:15]} 45. axb6 {[%clk 0:01:16]}  axb6 {[%clk 0:00:11]} 46. Ra4 {[%clk 0:01:16]}  Nd4 {[%clk 0:00:11]} 47. Ra7 {[%clk 0:00:55]}  Nxf3 {[%clk 0:00:09]} 48. Kf4 {[%clk 0:00:54]}  Nd4 {[%clk 0:00:08]} 49. Rxf7 {[%clk 0:00:52]}  Rf3+ {[%clk 0:00:07]} 50. Ke4 {[%clk 0:00:49]}  Kc4 {[%clk 0:00:02]} 51. Rc7+ {[%clk 0:00:48]}  Kb3 {[%clk 0:00:02]} 52. Bxd4 {[%clk 0:00:47]} 1-0


[Site "https://www.chess.com"]

[Event "Titled Tuesday Blitz April 11 Early 2023"]
[White "Karthikeyan, Murali"]
[Black "Fuzesabonyilaci"]
[WhiteFideId "5074452"]
[WhiteElo "2523"]
[BlackElo "2347"]
[Result "1-0"]
[Round "01"]
[TimeControl "180+2"]
[Date "2023.04.11"]
[WhiteClock "0:00:18"]
[BlackClock "0:00:12"]

1. e4 {[%clk 0:02:59]}  c6 {[%clk 0:02:58]} 2. d4 {[%clk 0:02:59]}  d5 {[%clk 0:02:58]} 3. Nc3 {[%clk 0:02:58]}  dxe4 {[%clk 0:02:58]} 4. Nxe4 {[%clk 0:02:59]}  Nf6 {[%clk 0:02:56]} 5. Nxf6+ {[%clk 0:02:59]}  exf6 {[%clk 0:02:57]} 6. Nf3 {[%clk 0:02:59]}  Bd6 {[%clk 0:02:50]} 7. Bd3 {[%clk 0:02:56]}  O-O {[%clk 0:02:45]} 8. O-O {[%clk 0:02:57]}  Qc7 {[%clk 0:02:41]} 9. h3 {[%clk 0:02:56]}  c5 {[%clk 0:02:34]} 10. c4 {[%clk 0:02:54]}  cxd4 {[%clk 0:02:32]} 11. Nxd4 {[%clk 0:02:55]}  a6 {[%clk 0:02:30]} 12. Qh5 {[%clk 0:02:47]}  g6 {[%clk 0:02:25]} 13. Qf3 {[%clk 0:02:48]}  Be5 {[%clk 0:02:17]} 14. Qe3 {[%clk 0:02:26]}  Nc6 {[%clk 0:02:11]} 15. Nf3 {[%clk 0:02:25]}  Bd7 {[%clk 0:01:55]} 16. Nxe5 {[%clk 0:02:21]}  fxe5 {[%clk 0:01:52]} 17. b3 {[%clk 0:02:18]}  Rfe8 {[%clk 0:01:40]} 18. Qg3 {[%clk 0:02:14]}  Nd4 {[%clk 0:01:33]} 19. Be3 {[%clk 0:02:02]}  Qc5 {[%clk 0:01:27]} 20. Rad1 {[%clk 0:01:58]}  Rad8 {[%clk 0:01:19]} 21. Bg5 {[%clk 0:01:56]}  Rc8 {[%clk 0:01:17]} 22. Rfe1 {[%clk 0:01:54]}  f5 {[%clk 0:01:03]} 23. Bf6 {[%clk 0:01:49]}  Nc6 {[%clk 0:00:56]} 24. Qg5 {[%clk 0:01:39]}  Rc7 {[%clk 0:00:49]} 25. Be2 {[%clk 0:01:26]}  Qf8 {[%clk 0:00:48]} 26. Bf3 {[%clk 0:01:20]}  e4 {[%clk 0:00:48]} 27. Bh5 {[%clk 0:01:20]}  Qf7 {[%clk 0:00:46]} 28. Ba1 {[%clk 0:01:02]}  Nd8 {[%clk 0:00:26]} 29. Be2 {[%clk 0:00:45]}  Ne6 {[%clk 0:00:26]} 30. Qe3 {[%clk 0:00:46]}  Ng7 {[%clk 0:00:26]} 31. Rd6 {[%clk 0:00:45]}  Bc6 {[%clk 0:00:26]} 32. Red1 {[%clk 0:00:44]}  Re6 {[%clk 0:00:22]} 33. Rd8+ {[%clk 0:00:43]}  Be8 {[%clk 0:00:22]} 34. Qf4 {[%clk 0:00:38]}  Ree7 {[%clk 0:00:21]} 35. c5 {[%clk 0:00:29]}  Rxc5 {[%clk 0:00:20]} 36. Bc4 {[%clk 0:00:30]}  Rxc4 {[%clk 0:00:19]} 37. bxc4 {[%clk 0:00:30]}  Qxc4 {[%clk 0:00:19]} 38. Qd6 {[%clk 0:00:31]}  Qf7 {[%clk 0:00:18]} 39. Qb8 {[%clk 0:00:26]}  h5 {[%clk 0:00:17]} 40. h4 {[%clk 0:00:25]}  Kh7 {[%clk 0:00:18]} 41. Qf4 {[%clk 0:00:17]}  Ne6 {[%clk 0:00:15]} 42. Qe5 {[%clk 0:00:17]}  Ng7 {[%clk 0:00:16]} 43. Qc3 {[%clk 0:00:17]}  Rc7 {[%clk 0:00:14]} 44. Qxg7+ {[%clk 0:00:17]}  Qxg7 {[%clk 0:00:14]} 45. Bxg7 {[%clk 0:00:18]}  Ba4 {[%clk 0:00:14]} 46. Be5 {[%clk 0:00:18]}  Re7 {[%clk 0:00:12]} 47. Rh8# {[%clk 0:00:18]} 1-0


[Site "https://www.chess.com"]

[Event "Titled Tuesday Blitz April 11 Early 2023"]
[White "Balint, Vilmos"]
[Black "Mendez Fortes, Eduardo Jesus"]
[WhiteFideId "718050"]
[BlackFideId "3502376"]
[WhiteElo "2034"]
[BlackElo "2307"]
[Result "1-0"]
[Round "01"]
[TimeControl "180+2"]
[Date "2023.04.11"]
[WhiteClock "0:01:15"]
[BlackClock "0:00:09"]

1. e4 {[%clk 0:03:00]}  c5 {[%clk 0:02:59]} 2. Nf3 {[%clk 0:03:00]}  d6 {[%clk 0:02:57]} 3. d4 {[%clk 0:03:00]}  cxd4 {[%clk 0:02:58]} 4. Bb5+ {[%clk 0:02:59]}  Nd7 {[%clk 0:02:57]} 5. Nxd4 {[%clk 0:02:59]}  a6 {[%clk 0:02:56]} 6. Bxd7+ {[%clk 0:02:59]}  Bxd7 {[%clk 0:02:57]} 7. O-O {[%clk 0:02:59]}  Nf6 {[%clk 0:02:43]} 8. Re1 {[%clk 0:02:58]}  e6 {[%clk 0:02:43]} 9. c4 {[%clk 0:02:57]}  Be7 {[%clk 0:02:43]} 10. b3 {[%clk 0:02:57]}  O-O {[%clk 0:02:43]} 11. Bb2 {[%clk 0:02:57]}  b5 {[%clk 0:02:43]} 12. cxb5 {[%clk 0:02:57]}  axb5 {[%clk 0:02:44]} 13. Nc3 {[%clk 0:02:57]}  Qb6 {[%clk 0:02:38]} 14. Qd3 {[%clk 0:02:42]}  Rfb8 {[%clk 0:02:07]} 15. h3 {[%clk 0:02:42]}  b4 {[%clk 0:01:51]} 16. Nd1 {[%clk 0:02:41]}  d5 {[%clk 0:01:48]} 17. exd5 {[%clk 0:02:32]}  Nxd5 {[%clk 0:01:47]} 18. Nf5 {[%clk 0:02:26]}  exf5 {[%clk 0:01:10]} 19. Qxd5 {[%clk 0:02:25]}  Be6 {[%clk 0:01:08]} 20. Qf3 {[%clk 0:02:19]}  Rd8 {[%clk 0:00:55]} 21. Ne3 {[%clk 0:02:17]}  Qb5 {[%clk 0:00:31]} 22. Nxf5 {[%clk 0:01:53]}  Bg5 {[%clk 0:00:22]} 23. Nxg7 {[%clk 0:01:44]}  Bd7 {[%clk 0:00:20]} 24. Nh5 {[%clk 0:01:37]}  Ra6 {[%clk 0:00:20]} 25. Re5 {[%clk 0:01:24]}  Rg6 {[%clk 0:00:19]} 26. Rxb5 {[%clk 0:01:24]}  Bxb5 {[%clk 0:00:18]} 27. Rd1 {[%clk 0:01:22]}  Re8 {[%clk 0:00:17]} 28. Nf4 {[%clk 0:01:18]}  Bxf4 {[%clk 0:00:09]} 29. Qxf4 {[%clk 0:01:18]}  Bc6 {[%clk 0:00:10]} 30. g3 {[%clk 0:01:17]}  h5 {[%clk 0:00:09]} 31. Qd4 {[%clk 0:01:15]}  f6 {[%clk 0:00:09]} 32. Qc4+ {[%clk 0:01:15]} 1-0


[Site "https://www.chess.com"]

[Event "Titled Tuesday Blitz April 11 Early 2023"]
[White "Van Foreest, Machteld"]
[Black "Chernobay, Artem"]
[WhiteFideId "1051563"]
[BlackFideId "4167406"]
[WhiteElo "2018"]
[BlackElo "2474"]
[Result "0-1"]
[Round "01"]
[TimeControl "180+2"]
[Date "2023.04.11"]
[WhiteClock "0:01:05"]
[BlackClock "0:02:06"]

1. e4 {[%clk 0:02:55]}  c5 {[%clk 0:02:58]} 2. Nf3 {[%clk 0:02:55]}  e6 {[%clk 0:02:58]} 3. d4 {[%clk 0:02:55]}  cxd4 {[%clk 0:02:59]} 4. Nxd4 {[%clk 0:02:56]}  Nf6 {[%clk 0:02:59]} 5. Nc3 {[%clk 0:02:56]}  Nc6 {[%clk 0:02:59]} 6. Nxc6 {[%clk 0:02:55]}  bxc6 {[%clk 0:02:59]} 7. e5 {[%clk 0:02:55]}  Nd5 {[%clk 0:02:59]} 8. Ne4 {[%clk 0:02:55]}  Qc7 {[%clk 0:02:59]} 9. f4 {[%clk 0:02:56]}  Rb8 {[%clk 0:02:59]} 10. c4 {[%clk 0:02:56]}  Bb4+ {[%clk 0:02:59]} 11. Ke2 {[%clk 0:02:55]}  O-O {[%clk 0:02:59]} 12. cxd5 {[%clk 0:02:56]}  cxd5 {[%clk 0:03:00]} 13. Ng5 {[%clk 0:02:56]}  f6 {[%clk 0:02:58]} 14. Nf3 {[%clk 0:02:55]}  fxe5 {[%clk 0:02:48]} 15. fxe5 {[%clk 0:02:46]}  Bc5 {[%clk 0:02:35]} 16. Be3 {[%clk 0:02:34]}  Rxb2+ {[%clk 0:02:33]} 17. Bd2 {[%clk 0:02:14]}  Ba6+ {[%clk 0:02:17]} 18. Ke1 {[%clk 0:02:10]}  Qxe5+ {[%clk 0:02:17]} 19. Be2 {[%clk 0:02:00]}  Rxf3 {[%clk 0:02:12]} 20. gxf3 {[%clk 0:01:50]}  Bb4 {[%clk 0:02:13]} 21. f4 {[%clk 0:01:14]}  Qe4 {[%clk 0:02:09]} 22. Kf2 {[%clk 0:01:05]}  Rxd2 {[%clk 0:02:06]} 0-1


[Site "https://www.chess.com"]

[Event "Titled Tuesday Blitz April 11 Early 2023"]
[White "EREBUNI91"]
[Black "Hoffmann, Asa"]
[BlackFideId "2001470"]
[WhiteElo "2660"]
[BlackElo "2117"]
[Result "1-0"]
[Round "01"]
[TimeControl "180+2"]
[Date "2023.04.11"]
[WhiteClock "0:00:35"]
[BlackClock "0:00:38"]

1. e4 {[%clk 0:02:59]}  d6 {[%clk 0:02:54]} 2. d4 {[%clk 0:02:58]}  Nf6 {[%clk 0:02:51]} 3. Nc3 {[%clk 0:02:58]}  c6 {[%clk 0:02:51]} 4. Nf3 {[%clk 0:02:57]}  Bg4 {[%clk 0:02:50]} 5. h3 {[%clk 0:02:55]}  Bh5 {[%clk 0:02:50]} 6. Bc4 {[%clk 0:02:55]}  e6 {[%clk 0:02:50]} 7. O-O {[%clk 0:02:53]}  d5 {[%clk 0:02:50]} 8. exd5 {[%clk 0:02:45]}  cxd5 {[%clk 0:02:49]} 9. Bb5+ {[%clk 0:02:43]}  Nc6 {[%clk 0:02:49]} 10. Qd3 {[%clk 0:02:24]}  Bg6 {[%clk 0:02:42]} 11. Qe2 {[%clk 0:02:24]}  Bd6 {[%clk 0:02:37]} 12. Ne5 {[%clk 0:02:23]}  Bxe5 {[%clk 0:02:34]} 13. dxe5 {[%clk 0:02:24]}  Nd7 {[%clk 0:02:34]} 14. Rd1 {[%clk 0:02:13]}  O-O {[%clk 0:02:27]} 15. f4 {[%clk 0:02:12]}  Rc8 {[%clk 0:02:04]} 16. Be3 {[%clk 0:02:07]}  Qa5 {[%clk 0:01:59]} 17. a3 {[%clk 0:01:51]}  a6 {[%clk 0:01:58]} 18. Bd3 {[%clk 0:01:47]}  d4 {[%clk 0:01:52]} 19. Bxg6 {[%clk 0:01:46]}  fxg6 {[%clk 0:01:39]} 20. Bxd4 {[%clk 0:01:40]}  Nxd4 {[%clk 0:01:39]} 21. Rxd4 {[%clk 0:01:39]}  Qb6 {[%clk 0:01:34]} 22. Qf2 {[%clk 0:01:14]}  Qxb2 {[%clk 0:01:30]} 23. Rb1 {[%clk 0:01:13]}  Qxc3 {[%clk 0:01:26]} 24. Rxd7 {[%clk 0:01:13]}  b5 {[%clk 0:01:22]} 25. a4 {[%clk 0:00:58]}  g5 {[%clk 0:01:12]} 26. Qa7 {[%clk 0:00:47]}  Qc5+ {[%clk 0:01:10]} 27. Qxc5 {[%clk 0:00:47]}  Rxc5 {[%clk 0:01:10]} 28. axb5 {[%clk 0:00:48]}  axb5 {[%clk 0:01:10]} 29. Ra1 {[%clk 0:00:43]}  Kh8 {[%clk 0:00:42]} 30. Raa7 {[%clk 0:00:39]}  Rg8 {[%clk 0:00:42]} 31. f5 {[%clk 0:00:38]}  exf5 {[%clk 0:00:39]} 32. e6 {[%clk 0:00:37]}  Re5 {[%clk 0:00:39]} 33. e7 {[%clk 0:00:37]}  h6 {[%clk 0:00:38]} 34. Rd8 {[%clk 0:00:35]} 1-0


[Site "https://www.chess.com"]

[Event "Titled Tuesday Blitz April 11 Early 2023"]
[White "polandchessplayer"]
[Black "Andrews, Todd"]
[BlackFideId "2012456"]
[WhiteElo "2653"]
[BlackElo "2326"]
[Result "1/2-1/2"]
[Round "01"]
[TimeControl "180+2"]
[Date "2023.04.11"]
[WhiteClock "0:00:06"]
[BlackClock "0:00:08"]

1. c4 {[%clk 0:03:00]}  Nf6 {[%clk 0:02:58]} 2. Nf3 {[%clk 0:02:59]}  g6 {[%clk 0:02:58]} 3. g3 {[%clk 0:03:00]}  Bg7 {[%clk 0:02:58]} 4. Bg2 {[%clk 0:03:01]}  O-O {[%clk 0:02:58]} 5. O-O {[%clk 0:03:02]}  d6 {[%clk 0:02:59]} 6. d4 {[%clk 0:03:02]}  Nbd7 {[%clk 0:02:53]} 7. Nc3 {[%clk 0:03:02]}  e5 {[%clk 0:02:53]} 8. dxe5 {[%clk 0:02:59]}  dxe5 {[%clk 0:02:52]} 9. Bg5 {[%clk 0:02:45]}  c6 {[%clk 0:02:48]} 10. Qd6 {[%clk 0:02:42]}  h6 {[%clk 0:02:39]} 11. Be3 {[%clk 0:02:34]}  Re8 {[%clk 0:02:38]} 12. Rfd1 {[%clk 0:02:30]}  Qe7 {[%clk 0:02:33]} 13. Qxe7 {[%clk 0:02:02]}  Rxe7 {[%clk 0:02:33]} 14. Nd2 {[%clk 0:02:02]}  Ng4 {[%clk 0:02:30]} 15. Nde4 {[%clk 0:02:02]}  Nxe3 {[%clk 0:02:29]} 16. fxe3 {[%clk 0:02:03]}  f5 {[%clk 0:02:16]} 17. Nd6 {[%clk 0:02:03]}  Nc5 {[%clk 0:02:13]} 18. Rd2 {[%clk 0:01:57]}  Be6 {[%clk 0:02:11]} 19. b4 {[%clk 0:01:53]}  e4 {[%clk 0:01:55]} 20. Rc1 {[%clk 0:01:46]}  Na6 {[%clk 0:01:47]} 21. a3 {[%clk 0:01:46]}  Rd8 {[%clk 0:01:44]} 22. Ndxe4 {[%clk 0:01:23]}  Rxd2 {[%clk 0:01:32]} 23. Nxd2 {[%clk 0:01:24]}  Rd7 {[%clk 0:01:12]} 24. Ncb1 {[%clk 0:01:22]}  Nc7 {[%clk 0:01:02]} 25. Kf2 {[%clk 0:01:14]}  a5 {[%clk 0:00:55]} 26. Nb3 {[%clk 0:01:13]}  axb4 {[%clk 0:00:51]} 27. axb4 {[%clk 0:01:14]}  Re7 {[%clk 0:00:49]} 28. Nd4 {[%clk 0:01:11]}  Bd7 {[%clk 0:00:48]} 29. Nd2 {[%clk 0:01:07]}  g5 {[%clk 0:00:44]} 30. N2b3 {[%clk 0:01:01]}  Na6 {[%clk 0:00:40]} 31. b5 {[%clk 0:01:00]}  Nb4 {[%clk 0:00:40]} 32. bxc6 {[%clk 0:00:59]}  bxc6 {[%clk 0:00:39]} 33. Nxc6 {[%clk 0:00:59]}  Bxc6 {[%clk 0:00:37]} 34. Bf1 {[%clk 0:00:53]}  h5 {[%clk 0:00:33]} 35. Nd4 {[%clk 0:00:53]}  Be8 {[%clk 0:00:29]} 36. Nxf5 {[%clk 0:00:38]}  Rf7 {[%clk 0:00:29]} 37. e4 {[%clk 0:00:38]}  Bd7 {[%clk 0:00:25]} 38. g4 {[%clk 0:00:35]}  hxg4 {[%clk 0:00:24]} 39. Kg3 {[%clk 0:00:34]}  Bxf5 {[%clk 0:00:24]} 40. exf5 {[%clk 0:00:35]}  Rxf5 {[%clk 0:00:24]} 41. Kxg4 {[%clk 0:00:36]}  Rc5 {[%clk 0:00:23]} 42. Bg2 {[%clk 0:00:35]}  Kf7 {[%clk 0:00:21]} 43. e3 {[%clk 0:00:31]}  Nd3 {[%clk 0:00:20]} 44. Bd5+ {[%clk 0:00:27]}  Ke7 {[%clk 0:00:19]} 45. Rf1 {[%clk 0:00:27]}  Ne5+ {[%clk 0:00:18]} 46. Kh5 {[%clk 0:00:23]}  Nxc4 {[%clk 0:00:19]} 47. Rf7+ {[%clk 0:00:23]}  Kd6 {[%clk 0:00:18]} 48. Bxc4 {[%clk 0:00:23]}  g4+ {[%clk 0:00:17]} 49. Kh4 {[%clk 0:00:19]}  Rxc4 {[%clk 0:00:15]} 50. Rxg7 {[%clk 0:00:19]}  Re4 {[%clk 0:00:16]} 51. Rxg4 {[%clk 0:00:18]}  Rxe3 {[%clk 0:00:16]} 52. Rf4 {[%clk 0:00:17]}  Ke6 {[%clk 0:00:16]} 53. Rf1 {[%clk 0:00:14]}  Re2 {[%clk 0:00:15]} 54. h3 {[%clk 0:00:14]}  Re4+ {[%clk 0:00:16]} 55. Kg5 {[%clk 0:00:14]}  Re5+ {[%clk 0:00:15]} 56. Kh6 {[%clk 0:00:12]}  Re4 {[%clk 0:00:15]} 57. Kh5 {[%clk 0:00:12]}  Re5+ {[%clk 0:00:15]} 58. Kg4 {[%clk 0:00:13]}  Re4+ {[%clk 0:00:16]} 59. Kg5 {[%clk 0:00:13]}  Re5+ {[%clk 0:00:16]} 60. Kg6 {[%clk 0:00:13]}  Re4 {[%clk 0:00:16]} 61. Rh1 {[%clk 0:00:12]}  Rh4 {[%clk 0:00:15]} 62. Kg5 {[%clk 0:00:12]}  Rh8 {[%clk 0:00:13]} 63. h4 {[%clk 0:00:13]}  Kf7 {[%clk 0:00:13]} 64. Rf1+ {[%clk 0:00:14]}  Kg7 {[%clk 0:00:13]} 65. Rb1 {[%clk 0:00:14]}  Rd8 {[%clk 0:00:12]} 66. Rb7+ {[%clk 0:00:13]}  Kh8 {[%clk 0:00:12]} 67. Rb6 {[%clk 0:00:14]}  Kg7 {[%clk 0:00:11]} 68. Rb7+ {[%clk 0:00:14]}  Kh8 {[%clk 0:00:11]} 69. Rb6 {[%clk 0:00:13]}  Kg7 {[%clk 0:00:11]} 70. Rb5 {[%clk 0:00:13]}  Kh7 {[%clk 0:00:11]} 71. h5 {[%clk 0:00:14]}  Kg7 {[%clk 0:00:12]} 72. Ra5 {[%clk 0:00:10]}  Kh7 {[%clk 0:00:12]} 73. Rf5 {[%clk 0:00:10]}  Kg7 {[%clk 0:00:12]} 74. h6+ {[%clk 0:00:11]}  Kh7 {[%clk 0:00:12]} 75. Rf7+ {[%clk 0:00:11]}  Kh8 {[%clk 0:00:11]} 76. Rf6 {[%clk 0:00:11]}  Kh7 {[%clk 0:00:10]} 77. Rf7+ {[%clk 0:00:08]}  Kh8 {[%clk 0:00:10]} 78. Re7 {[%clk 0:00:05]}  Kg8 {[%clk 0:00:08]} 79. Kg6 {[%clk 0:00:05]}  Rd6+ {[%clk 0:00:08]} 80. Kg5 {[%clk 0:00:05]}  Rd8 {[%clk 0:00:08]} 81. Re6 {[%clk 0:00:06]}  Kh7 {[%clk 0:00:08]} 82. Re7+ {[%clk 0:00:06]}  Kg8 {[%clk 0:00:08]} 1/2-1/2


[Site "https://www.chess.com"]

[Event "Titled Tuesday Blitz April 11 Early 2023"]
[White "Grunberg, Mihai-Lucian"]
[Black "Rodriguez Santiago, Jaime"]
[WhiteFideId "1204149"]
[BlackFideId "3100898"]
[WhiteElo "2363"]
[BlackElo "2025"]
[Result "0-1"]
[Round "01"]
[TimeControl "180+2"]
[Date "2023.04.11"]
[WhiteClock "0:00:03"]
[BlackClock "0:00:18"]

1. d4 {[%clk 0:02:59]}  Nf6 {[%clk 0:02:59]} 2. c4 {[%clk 0:02:59]}  e6 {[%clk 0:02:59]} 3. Nf3 {[%clk 0:02:57]}  d5 {[%clk 0:02:58]} 4. g3 {[%clk 0:02:55]}  dxc4 {[%clk 0:02:58]} 5. Qa4+ {[%clk 0:02:54]}  Bd7 {[%clk 0:02:57]} 6. Qxc4 {[%clk 0:02:54]}  c5 {[%clk 0:02:57]} 7. Bg2 {[%clk 0:02:53]}  Nc6 {[%clk 0:02:57]} 8. O-O {[%clk 0:02:51]}  b5 {[%clk 0:02:57]} 9. Qd3 {[%clk 0:02:46]}  c4 {[%clk 0:02:57]} 10. Qd1 {[%clk 0:02:45]}  Rc8 {[%clk 0:02:55]} 11. a4 {[%clk 0:02:45]}  a6 {[%clk 0:02:51]} 12. axb5 {[%clk 0:02:45]}  axb5 {[%clk 0:02:52]} 13. Na3 {[%clk 0:02:46]}  Bxa3 {[%clk 0:02:47]} 14. Rxa3 {[%clk 0:02:45]}  O-O {[%clk 0:02:45]} 15. Bf4 {[%clk 0:02:39]}  b4 {[%clk 0:02:33]} 16. Ra4 {[%clk 0:02:35]}  Nd5 {[%clk 0:02:25]} 17. Bd6 {[%clk 0:02:33]}  Nce7 {[%clk 0:02:14]} 18. Ra7 {[%clk 0:02:26]}  c3 {[%clk 0:01:53]} 19. bxc3 {[%clk 0:02:19]}  bxc3 {[%clk 0:01:49]} 20. Ne5 {[%clk 0:02:15]}  c2 {[%clk 0:01:30]} 21. Qd2 {[%clk 0:02:11]}  Bb5 {[%clk 0:01:20]} 22. Bc5 {[%clk 0:02:04]}  Re8 {[%clk 0:01:04]} 23. Rc1 {[%clk 0:01:52]}  f6 {[%clk 0:01:00]} 24. Nd3 {[%clk 0:01:44]}  Nc6 {[%clk 0:00:58]} 25. Ra2 {[%clk 0:01:39]}  Bxd3 {[%clk 0:00:55]} 26. exd3 {[%clk 0:01:32]}  Nde7 {[%clk 0:00:39]} 27. Qe3 {[%clk 0:01:20]}  Nf5 {[%clk 0:00:37]} 28. Qe4 {[%clk 0:01:14]}  Nfxd4 {[%clk 0:00:34]} 29. Bh3 {[%clk 0:00:56]}  f5 {[%clk 0:00:32]} 30. Qe3 {[%clk 0:00:48]}  Qd5 {[%clk 0:00:31]} 31. Raxc2 {[%clk 0:00:39]}  Nxc2 {[%clk 0:00:30]} 32. Rxc2 {[%clk 0:00:40]}  Ne5 {[%clk 0:00:28]} 33. Bg2 {[%clk 0:00:20]}  Qxd3 {[%clk 0:00:27]} 34. Qxe5 {[%clk 0:00:20]}  Qxc2 {[%clk 0:00:26]} 35. Bd4 {[%clk 0:00:21]}  Re7 {[%clk 0:00:24]} 36. h4 {[%clk 0:00:16]}  Rd8 {[%clk 0:00:23]} 37. Bf3 {[%clk 0:00:14]}  Qc8 {[%clk 0:00:20]} 38. h5 {[%clk 0:00:14]}  Qd7 {[%clk 0:00:20]} 39. Bc3 {[%clk 0:00:13]}  Qd6 {[%clk 0:00:20]} 40. Qe3 {[%clk 0:00:12]}  Qd3 {[%clk 0:00:19]} 41. Qe5 {[%clk 0:00:12]}  Qd6 {[%clk 0:00:19]} 42. Qxd6 {[%clk 0:00:11]}  Rxd6 {[%clk 0:00:18]} 43. Bb4 {[%clk 0:00:12]}  Rdd7 {[%clk 0:00:19]} 44. Bxe7 {[%clk 0:00:11]}  Rxe7 {[%clk 0:00:19]} 45. Kg2 {[%clk 0:00:12]}  Kf7 {[%clk 0:00:20]} 46. g4 {[%clk 0:00:12]}  fxg4 {[%clk 0:00:19]} 47. Bxg4 {[%clk 0:00:13]}  Kf6 {[%clk 0:00:20]} 48. Kg3 {[%clk 0:00:13]}  e5 {[%clk 0:00:19]} 49. f3 {[%clk 0:00:13]}  Kg5 {[%clk 0:00:20]} 50. Kf2 {[%clk 0:00:12]}  Kf4 {[%clk 0:00:19]} 51. Bh3 {[%clk 0:00:10]}  e4 {[%clk 0:00:20]} 52. fxe4 {[%clk 0:00:10]}  Rxe4 {[%clk 0:00:20]} 53. Bg2 {[%clk 0:00:09]}  Re5 {[%clk 0:00:21]} 54. Bf3 {[%clk 0:00:10]}  Ra5 {[%clk 0:00:20]} 55. Bd1 {[%clk 0:00:09]}  Ra2+ {[%clk 0:00:20]} 56. Ke1 {[%clk 0:00:08]}  Kg5 {[%clk 0:00:19]} 57. Bb3 {[%clk 0:00:07]}  Rh2 {[%clk 0:00:19]} 58. Bf7 {[%clk 0:00:06]}  Kf6 {[%clk 0:00:18]} 59. Be8 {[%clk 0:00:04]}  Rh4 {[%clk 0:00:18]} 60. Kf2 {[%clk 0:00:04]}  Re4 {[%clk 0:00:18]} 61. Bc6 {[%clk 0:00:03]}  Re5 {[%clk 0:00:19]} 62. Bf3 {[%clk 0:00:03]}  Kg5 {[%clk 0:00:19]} 63. Kg3 {[%clk 0:00:03]}  Rf5 {[%clk 0:00:19]} 64. Be2 {[%clk 0:00:03]}  Rc5 {[%clk 0:00:18]} 65. Bd3 {[%clk 0:00:03]}  Rc3 {[%clk 0:00:18]} 0-1


[Site "https://www.chess.com"]